Cogmind - Beta 14 @@@ ROGUE MODE // 2024.09.06 @ 18:21:55 Player: celerysam Result: Destroyed by S-27 Virus with Autogun Performance ------------- Evolutions (3) 1500 Regions Visited (4) 800 Robots Destroyed (75) 375 Value Destroyed (2537) 2537 Prototype IDs (3) 60 Alien Tech Used (0) 0 Bonus (436) 436 TOTAL SCORE: 5708 Bonus ------- High Alert Combat Kills 436 Cogmind --------- Core Integrity 0/700 Matter 285/300 Energy 9/100 System Corruption 6% Temperature Cool (0) Movement Flying (34) Location -7/Factory Parts ------- > --- POWER (2) -------- (None) > --- PROPULSION (3) --- Improved VTOL Module Xenon Bombardment Thruster > --- UTILITY (4) ------ Improved Signal Interpreter Hacking Suite > --- WEAPON (4) ------- (None) > --- INVENTORY (5) ---- Deuterium Engine Xenon Bombardment Thruster Kinecellerator Peak State ------------ > --- POWER ------------ Light Deuterium Engine Micro Nuclear Core > --- PROPULSION ------- Titanium Leg Titanium Leg Titanium Leg > --- UTILITY ---------- Large Storage Unit Advanced Visual Processing Unit Particle Charger Hacking Suite > --- WEAPON ----------- Arc Projector Cooled Particle Cannon Cooled Particle Cannon Minigun > --- INVENTORY -------- Deuterium Engine Nuclear Core Gravmag System Improved VTOL Module Cooling System Huge Storage Unit Improved Sensor Array Improved Signal Interpreter Kinecellerator Heavy Armor Plating Improved Assault Rifle Mini Grenade Launcher Improved Datajack Remote Datajack [Rating: 47] Favorites ----------- Power Reinforced Ion Engine Engine Reinforced Ion Engine Power Core Nuclear Core Propulsion Titanium Leg Treads Armored Treads Leg Titanium Leg Wheel Wheel Hover Unit Gravmag System Flight Unit Flight Unit Utility Large Storage Unit Device Improved Heat Sink Storage Large Storage Unit Processor Advanced Visual Processing Unit Hackware Hacking Suite Weapon Minigun Energy Gun Spread Laser Energy Cannon Cooled Particle Cannon Ballistic Gun Minigun Ballistic Cannon Flak Cannon Launcher Mini Grenade Launcher Special Melee Weapon Improved Datajack Build | -11 -10 -9 -8 -7 ------- Run | Yrd Mat Mat Mat Fac Slots Evolved 6 | . . 2 2 2 Power 1 | . . . . 1 Propulsion 1 | . . . 1 . Utility 2 | . . . 1 1 Weapon 2 | . . 2 . . Parts Attached 105 | 6 8 19 37 35 Power 16 | 1 1 1 3 10 Engine 9 | 1 1 1 1 5 Core 7 | . . . 2 5 Reactor . | . . . . . Propulsion 33 | 2 4 7 13 7 Treads 16 | . 4 3 9 . Leg 7 | . . 2 3 2 Wheel 2 | 2 . . . . Hover 2 | . . . . 2 Flight 6 | . . 2 1 3 Utility 17 | 1 . 3 5 8 Device 10 | . . 3 1 6 Storage 4 | 1 . . 3 . Processor 2 | . . . 1 1 Hackware 1 | . . . . 1 Protection . | . . . . . Artifact . | . . . . . Weapon 39 | 2 3 8 16 10 Energy Gun 14 | 1 1 4 4 4 Energy Cannon 3 | . . . 1 2 Ballistic Gun 15 | 1 2 1 8 3 Ballistic Cannon 1 | . . . 1 . Launcher 5 | . . 3 2 . Special Weapon . | . . . . . Impact Weapon . | . . . . . Slashing Weapon . | . . . . . Piercing Weapon . | . . . . . Special Melee Weapon 1 | . . . . 1 Unidentified Prototypes 3 | . . . 2 1 Parts Lost 44 | . 4 8 12 20 Power 7 | . 1 1 2 3 Propulsion 14 | . 1 2 4 7 Utility 4 | . . 1 . 3 Weapon 19 | . 2 4 6 7 Highest Loss Streak 18 | . 1 3 8 18 To Critical Strikes . | . . . . . Average Slot Usage (%) 88 | . 78 65 94 93 Engine 6 | . 13 6 8 3 Core 4 | . . . . 9 Treads 12 | . 20 12 24 . Leg 9 | . . 4 1 20 Device 6 | . . 7 9 6 Storage 8 | . 14 11 9 6 Processor 5 | . . . 7 7 Hackware 2 | . . . . 7 Energy Gun 8 | . 14 10 15 1 Energy Cannon 3 | . . . . 8 Ballistic Gun 11 | . 9 1 11 15 Launcher 3 | . . 6 6 1 Peak Build Rating 47 | 6 6 18 33 47 Average Rating 27 | 3 5 8 27 40 On Entrance 12 | . 6 5 18 33 Naked Turns . | . . . . . Heaviest Build 56 | 12 12 22 47 56 Greatest Support 69 | 20 40 46 69 51 Greatest Overweight (x) 3 | . 3 2 1 2 Average Overweight (x) . | . . . . . Largest Inventory Capacity 25 | 8 8 8 25 15 Average Capacity 13 | 7 8 8 15 14 Most Carried 16 | 8 8 8 16 15 Average Carried 12 | 4 7 7 13 14 Final Capacity 15 | 8 8 8 15 5 Final Carried 13 | 6 7 7 13 3 Class Distribution -------------------- 34% | Skirmisher 30% | Mutant 20% | Gunner 12% | Scavenger-Skirmisher Dominant Class ---------------- Mutant | -10/Materials Mutant | -9/Materials Skirmisher | -8/Materials Skirmisher | -7/Factory Resources | -11 -10 -9 -8 -7 ----------- Run | Yrd Mat Mat Mat Fac Matter Collected 1939 | 214 78 94 931 622 Remotely . | . . . . . Salvage Created 2338 | . 141 477 1080 640 Parts 149 | . 7 36 68 38 Haulers Intercepted . | . . . . . Recyclers Shooed 1 | . . 1 . . Parts Field Recycled . | . . . . . Retrieved Matter . | . . . . . Parts Self-Destructed . | . . . . . Prevented . | . . . . . Kills | -11 -10 -9 -8 -7 ------- Run | Yrd Mat Mat Mat Fac Combat Hostiles Destroyed 69 | . 6 13 36 14 Guns 44 | . 4 12 21 7 Cannons 9 | . . . 3 6 AOE 16 | . 2 1 12 1 Classes Destroyed 12 | . 2 3 4 3 Worker 3 | . . . 1 2 Builder 1 | . . 1 . . Recycler 1 | . . . 1 . Watcher 1 | . . . . 1 Swarmer 22 | . 3 4 11 4 Grunt 29 | . 3 7 13 6 Brawler 4 | . . 1 3 . Duelist 1 | . . . . 1 Protector 1 | . . . 1 . Sentry 8 | . . 1 6 1 Hunter 2 | . . . 2 . Programmer 2 | . . . . 2 Best Kill Streak 5 | . 3 5 5 4 Combat Bots Only 5 | . 3 5 5 4 Max Kills in Single Turn 4 | . 2 1 4 2 Gunslinging 1 | . . . 1 . Exploded 4 | . 2 1 4 1 Melee . | . . . . . Uniques/NPCs Destroyed . | . . . . . Combat | -11 -10 -9 -8 -7 -------- Run | Yrd Mat Mat Mat Fac Hostile Shots Fired 622 | . 53 98 212 259 Missed 174 | . 17 18 55 84 Damage Taken 6976 | . 639 944 2754 2639 Core 1414 | . 170 198 345 701 Absorbed by Shields . | . . . . . Core Remaining (%) 54 | 100 32 50 37 . Volleys Fired 205 | . 28 54 75 48 Largest 4 | . 2 2 4 4 Hottest 183 | . 60 80 183 128 Shots Fired 474 | . 44 76 228 126 Gun 367 | . 44 72 190 61 Cannon 84 | . . . 24 60 Launcher 23 | . . 4 14 5 Special . | . . . . . Kinetic 158 | . 16 3 95 44 Thermal 277 | . 28 69 110 70 Explosive 23 | . . 4 14 5 Electromagnetic 16 | . . . 9 7 Robot Hit Streak 10 | . 6 9 9 10 Robot Miss Streak 12 | . 3 2 12 3 Penetration Max 1 | . . . 1 . Secondary Targets 6 | . 1 1 4 . Max Gunslinging Chain 1 | . 1 1 1 . Shots Hit Robots 304 | . 30 55 149 70 Core Hits 202 | . 12 25 132 33 Critical Kills . | . . . . . Critical Parts Destroyed 2 | . . . 1 1 Critical Strikes 5 | . . . 4 1 Burn 3 | . . . 3 . Destroy 2 | . . . 1 1 Melee Attacks 3 | . . . . 3 Impact . | . . . . . Slashing . | . . . . . Piercing . | . . . . . Sneak Attacks 2 | . . . . 2 Combat Hostiles . | . . . . . Follow-up Attacks . | . . . . . Damage Inflicted 6402 | . 553 642 3370 1837 Guns 3508 | . 313 616 2024 555 Cannons 1605 | . . . 463 1142 Explosions 1288 | . 240 26 882 140 Melee . | . . . . . Ramming 1 | . . . 1 . Kinetic 1560 | . 90 7 1070 393 Thermal 3468 | . 223 609 1385 1251 Explosive 1135 | . 240 26 729 140 Electromagnetic 238 | . . . 185 53 Impact . | . . . . . Slashing . | . . . . . Piercing . | . . . . . Highest Corruption 14 | . . 2 14 6 Average Corruption 4 | . . 2 12 3 Corruption Purged . | . . . . . Corruption Blocked . | . . . . . Effects 28 | . . 2 10 16 Message Errors 4 | . . . . 4 Matter Fused 6 | . . . 3 3 Heat Flow Errors 2 | . . . . 2 Energy Discharges 6 | . . 1 2 3 Data Loss (minor) 3 | . . . 1 2 Data Loss (major) 2 | . . . 1 1 Misfires 2 | . . . 1 1 Alerts 2 | . . 1 1 . Weapon Failures 1 | . . . 1 . Overload Shots . | . . . . . Overflow Damage 145 | . 27 . 48 70 Projectiles 69 | . . . . 69 Explosions 76 | . 27 . 48 1 Melee . | . . . . . Knockbacks 4 | . . . 4 . Impact . | . . . . . Kinetic 4 | . . . 4 . Secondary . | . . . . . Self-Inflicted Damage 496 | . 233 . 195 68 Shots 10 | . 3 . 5 2 Rammed 1 | . . . 1 . Targets Rammed 1 | . . . 1 . Kicked . | . . . . . Crushed . | . . . . . Highest Temperature 516 | . 112 24 516 456 Average Temperature 112 | . 35 9 121 143 Received Heat Transfer 2127 | . 192 438 1065 432 Effects 16 | . . . 6 10 Shutdowns 4 | . . . 2 2 Interference 8 | . . . 4 4 Matter Decay 1 | . . . . 1 Damage (minor) 1 | . . . . 1 Damage (major) 2 | . . . . 2 Siege Activations . | . . . . . Robots Corrupted . | . . . . . Combat Hostiles . | . . . . . Parts Fried 1 | . . . . 1 Impact Corruptions . | . . . . . Robots Melted . | . . . . . Combat Hostiles . | . . . . . Parts Melted 10 | . 3 1 5 1 Heat Transferred 6135 | . 500 1400 2496 1739 Parts Sabotaged . | . . . . . Parts Stolen . | . . . . . Parts Stripped . | . . . . . Power Chain Reactions 1 | . . . 1 . Alert | -11 -10 -9 -8 -7 ------- Run | Yrd Mat Mat Mat Fac Peak Influence 947 | . 176 433 947 513 Initial 343 | . . 74 98 343 Average 393 | . 116 230 580 355 Maximum Alert Level 3 | . . 2 3 2 Low Security (%) 17 | 100 100 33 5 . Level 1 44 | . . 61 14 80 Level 2 27 | . . 4 50 19 Level 3 10 | . . . 29 . Level 4 . | . . . . . Level 5 . | . . . . . High Security . | . . . . . Max Security . | . . . . . Squads Dispatched 16 | . . 2 6 8 Investigation 3 | . . . 2 1 Extermination 3 | . . . . 3 Reinforcement 6 | . . 2 1 3 Assault 1 | . . . 1 . Garrison 3 | . . . 2 1 Intercept . | . . . . . Searches Triggered . | . . . . . Construction Impeded 2 | . . . . 2 Haulers Reinforced . | . . . . . Active Scanning Responses . | . . . . . Cargo Convoy Interrupts . | . . . . . Stealth | -11 -10 -9 -8 -7 --------- Run | Yrd Mat Mat Mat Fac Distress Signals 6 | . . 1 5 . Communications Jammed . | . . . . . Distress Signals . | . . . . . Times Spotted 117 | . 7 21 55 34 Peak Tracking Total 13 | . 3 7 5 13 Tactical Retreats 6 | . . 1 3 2 Traps | -11 -10 -9 -8 -7 ------- Run | Yrd Mat Mat Mat Fac Traps Triggered 7 | . 2 1 1 3 Indirectly . | . . . . . Trap Hack Attempts . | . . . . . Triggered . | . . . . . Disarmed . | . . . . . Reprogrammed . | . . . . . Reused . | . . . . . Traps Extracted . | . . . . . Installed . | . . . . . Triggered . | . . . . . Machines | -11 -10 -9 -8 -7 ---------- Run | Yrd Mat Mat Mat Fac Machines Disabled 13 | . 3 . 7 3 Max in Single Turn 3 | . 1 . 3 1 Garrison Access 1 | . . . 1 . Machines Repaired . | . . . . . Machines Dismantled . | . . . . . Machines Sabotaged . | . . . . . Overloaded Fab Kills . | . . . . . Hacking | -11 -10 -9 -8 -7 --------- Run | Yrd Mat Mat Mat Fac Machines Accessed 19 | . 5 1 9 4 Terminals 13 | . 3 1 7 2 Fabricators 1 | . . . . 1 Repair Stations . | . . . . . Recycling Units 3 | . 2 . . 1 Scanalyzers 1 | . . . 1 . Garrison Access 1 | . . . 1 . Total Hacks 34 | . 8 1 17 8 Successful 19 | . 4 1 11 3 Failed 15 | . 4 . 6 5 Catastrophic 1 | . . . . 1 Database Lockouts . | . . . . . Manual 25 | . 8 1 13 3 Terminals 23 | . 5 1 14 3 Fabricators 3 | . . . . 3 Repair Stations . | . . . . . Recycling Units 5 | . 3 . . 2 Scanalyzers 2 | . . . 2 . Garrison Access 1 | . . . 1 . Terminal Hacks 2 | . . . 2 . Unreport Threat 2 | . . . 2 . Fabricator Hacks . | . . . . . Repair Station Hacks . | . . . . . Recycling Unit Hacks 2 | . . . . 2 Report Inventory 1 | . . . . 1 Retrieve Components 1 | . . . . 1 Scanalyzer 2 | . . . 2 . Insert Component 1 | . . . 1 . Analyze 1 | . . . 1 . Garrison Access Hacks . | . . . . . Unauthorized Hacks 13 | . 4 1 7 1 Terminals 10 | . 3 1 6 . Botnet 9 | . 3 1 5 . Search 1 | . . . 1 . Fabricators 1 | . . . . 1 Liberate 1 | . . . . 1 Repair Stations . | . . . . . Recycling Units 1 | . 1 . . . Mask 1 | . 1 . . . Scanalyzers . | . . . . . Garrison Access 1 | . . . 1 . Jam 1 | . . . 1 . Data Cores Recovered . | . . . . . Used . | . . . . . Hacking Detections 12 | . 3 1 4 4 Full Trace Events 1 | . . . . 1 Feedback Events . | . . . . . Feedback Blocked . | . . . . . Robot Schematics Acquired . | . . . . . Robots Built . | . . . . . Authchips . | . . . . . Time . | . . . . . Total Robot Build Rating . | . . . . . Part Schematics Acquired 1 | . . . 1 . Parts Built . | . . . . . Authchips . | . . . . . Time . | . . . . . Total Part Build Rating . | . . . . . Parts Repaired . | . . . . . Time . | . . . . . Parts Recycled . | . . . . . Recycled Matter . | . . . . . Retrieved Matter . | . . . . . Retrieved Components 10 | . . . . 10 Parts Scanalyzed 1 | . . . 1 . Part Schematics Acquired 1 | . . . 1 . Parts Damaged . | . . . . . Bothacking | -11 -10 -9 -8 -7 ------------ Run | Yrd Mat Mat Mat Fac Used RIF Installer . | . . . . . Robots Hacked . | . . . . . Non-combat . | . . . . . Combat . | . . . . . Robot Hacks Applied . | . . . . . Relay Couplers Released . | . . . . . Fabnet Peak Effective % . | . . . . . Robots Rewired . | . . . . . Allies Hacked . | . . . . . Hacks Repelled . | . . . . . Allies | -11 -10 -9 -8 -7 -------- Run | Yrd Mat Mat Mat Fac Total Allies . | . . . . . Largest Group . | . . . . . Highest-Rated Group . | . . . . . Highest-Rated Ally . | . . . . . Total Orders . | . . . . . Ally Attacks . | . . . . . Total Damage . | . . . . . Kills . | . . . . . Allies Corrupted . | . . . . . Allies Melted . | . . . . . Intel | -11 -10 -9 -8 -7 ------- Run | Yrd Mat Mat Mat Fac Robot Analysis Total . | . . . . . Derelict Logs Recovered . | . . . . . Drone Launches . | . . . . . Drone Recoveries . | . . . . . Exploration | -11 -10 -9 -8 -7 ------------- Run | Yrd Mat Mat Mat Fac Turns Passed 3876 | 55 385 493 1425 1518 Spaces Moved 2192 | 48 235 331 672 906 Core 15 | 3 1 1 . 10 Treads 896 | . 138 142 616 . Legs 934 | . . 29 56 849 Wheels 141 | 45 96 . . . Hover 47 | . . . . 47 Flight 159 | . . 159 . . Fastest Speed 37 | 50 80 37 130 56 Average Speed 139 | 78 127 97 164 142 Slowest Speed 270 | 80 200 160 250 270 Overloaded Moves . | . . . . . Propulsion Burnouts . | . . . . . Robots Hopped 5 | . . 5 . . Cave-ins Triggered . | . . . . . Exploration Rate (%) 35 | 3 48 34 68 23 Regions Visited 4 Branch Regions . Pre-discovered Areas . | . . . . . Known Exits Taken . | . . . . . Unknown Exits Taken 4 | 1 1 1 1 . Scrap Searched . | . . . . . Spaces Dug . | . . . . . Terrain Destroyed 189 | . 22 27 103 37 Melee . | . . . . . Projectile 11 | . . . . 11 AOE 178 | . 22 27 103 26 Terrain Rammed . | . . . . . Walls Destroyed . | . . . . . Machines Disabled . | . . . . . Actions | -11 -10 -9 -8 -7 --------- Run | Yrd Mat Mat Mat Fac Total 2651 | 64 277 422 847 1041 Wait 26 | . 2 2 11 11 Move 2180 | 47 234 322 671 906 Hop 3 | . . 3 . . Pick Up 75 | 11 5 13 30 16 Fast Attach 19 | 1 1 6 5 6 Attach 45 | 5 4 9 14 13 Detach 2 | . . . 1 1 Swap 41 | . 3 4 18 16 Drop 51 | . . 9 21 21 Fire 205 | . 28 54 75 48 Melee 3 | . . . . 3 Ram . | . . . . . Kick . | . . . . . Crush 1 | . . . 1 . Escape Stasis . | . . . . . Rewire . | . . . . . Trap . | . . . . . Miscellaneous . | . . . . . Route ------- -11/Scrapyard -10/Materials (discovered 3 exits: *Mat x2 / [*Min]) -9/Materials (discovered 3 exits: *Mat x2 / [*Sto]) -8/Materials (discovered 2 exits: *Fac x2) -7/Factory (discovered 1 exit: [*Fac]) History --------- Turn | Location | Event 19 | -11/Scrapyard | Discovered new exit (range 15) 56 | -11/Scrapyard | Entered Materials 156 | -10/Materials | Discovered new exit (range 4) 316 | -10/Materials | Build established: Mutant 318 | -10/Materials | Core integrity fell below 50% 348 | -10/Materials | Discovered new exit (range 8) 359 | -10/Materials | Discovered new exit (range 15) 441 | -10/Materials | Entered another Materials area 441 | -9/Materials | Evolved 2 slots: Weapon x2 486 | -9/Materials | Discovered new exit (range 5) 694 | -9/Materials | Lost 3 parts (1p1n1w) 761 | -9/Materials | Discovered new exit (range 16) 892 | -9/Materials | Discovered new exit (range 7) 934 | -9/Materials | Entered another Materials area 934 | -8/Materials | Evolved 2 slots: Propulsion x1, Utility x1 1484 | -8/Materials | Build established: Skirmisher 1717 | -8/Materials | Discovered new exit (range 19) 1867 | -8/Materials | Garrison activated, responded to threat 1945 | -8/Materials | Build established: Scavenger-Skirmisher 2132 | -8/Materials | Core integrity fell below 50% 2134 | -8/Materials | First assault squad dispatched 2196 | -8/Materials | System corruption reached 10% 2250 | -8/Materials | Lost 8 parts (2p2n4w) 2292 | -8/Materials | Discovered new exit (range 20) 2359 | -8/Materials | Entered Factory 2359 | -7/Factory | Evolved 2 slots: Power x1, Utility x1 2584 | -7/Factory | Build established: Skirmisher 3197 | -7/Factory | Discovered new exit (range 20) 3435 | -7/Factory | Build established: Gunner 3790 | -7/Factory | Core integrity fell below 50% 3810 | -7/Factory | Garrison activated, responded to threat 3865 | -7/Factory | Core integrity fell below 20% 3877 | -7/Factory | Destroyed by S-27 Virus with Autogun Last Messages --------------- 03820_ K-01 Serf collects debris. 03820_ Penetrated by Slug. 03820_ K-01 Serf destroyed. 03823_ K-01 Serf collects debris. 03826_ Penetrated by Slug. 03827_ K-01 Serf collects debris. 03834_ Discarded Adv. Visual Processing Unit. 03835_ Dropped Lrg. Storage Unit. 03836_ Acquired Xenon Bombardment Thruster. 03846_ Lgt. Nuclear Core destroyed. 03847_ Imp. Sensor Array destroyed. 03850_ Gravmag System destroyed. 03850_ Xenon Bombardment Thruster destroyed. 03850_ Imp. Assault Rifle destroyed. 03852_ Gravmag System destroyed. 03859_ ALERT: Rogue bot located, Programmers report to Factory Zone 5O. 03862_ Acquired Field Laser. 03866_ Cooling System destroyed. 03871_ Particle Gun destroyed. 03877_ Field Laser destroyed. Map ----- +----------------------------------------------------+ | ?????????????????????????? ######## ##? | | ?????????????????????????? ????????# #??? | | ??????????????????????????# ########## #???? | | ??????????????????????????# # ## #???? | | ??????????????????????????# # ## ##??? | | ??????????????????????????# + === # #??? | | ??????????????????????????# # == # #??? | | ??????????????????????????# # + T #??? | | ??????????????????????????# # ! # #??? | | ??????????????????????????# # # #??? | | ???????????################ # ### ###??? | | ?????????? # #?? #????? | | ?????????? # #?? #????? | | ????????? + #?? #????? | | ????????? # #?? #????? | | ????????? # #?? ????? | | ????????????????+######/######### #?? #????? | | ???????????????????# #???# #?? #????? | | ???????????????????# """" #???# #???#????? | | ???????????????????# * """" #???# #????????? | | ???????????????????# gg"""" #???#########????????? | | ???????????????????# gY"""" #????????????????????? | | ???????????????????# gg"""" #????????????????????? | | ???????????????????# """"s#????????????????????? | | ???????????????????# ss #????????????????????? | | ???????????????????# s @ #????????????????????? | | ???????????????????##########????????????????????? | | ?????????????????????????????????????????????????? | | ?????????????????????????????????????????????????? | | ?????????????????????????????????????????????????? | | ?????????????????????????????????????????????????? | | ?????????????????????????????????????????????????? | | ?????????????????????????????????????????????????? | | ?????????????????????????????????????????????????? | | ?????????????????????????????????????????????????? | | ?????????????????????????????????????????????????? | | ?????????????????????????????????????????????????? | | ?????????????????????????????????????????????????? | | ?????????????????????????????????????????????????? | | ?????????????????????????????????????????????????? | | ?????????????????????????????????????????????????? | | ?????????????????????????????????????????????????? | | ?????????????????????????????????????????????????? | | ?????????????????????????????????????????????????? | | ?????????????????????????????????????????????????? | | ?????????????????????????????????????????????????? | | ?????????????????????????????????????????????????? | | ?????????????????????????????????????????????????? | | ?????????????????????????????????????????????????? | | ?????????????????????????????????????????????????? | +----------------------------------------------------+ Best States ------------- Heat Dissipation 56 Coolant Potential 50 Energy Generation 24 Energy Capacity 405 Matter Stores 300 Matter Capacity 300 Sight Range 20 Robot Scan Range 15 Terrain Scan Density 10 Evasion (%) 62 Recoil Reduction 3 Particle Charging 15 Offensive Hacking 10 Item Schematics ----------------- Imp. VTOL Module | -8/Materials | Scanalyzed Robot Schematics ------------------ None Fabricated ------------ Nothing Alien Tech Used ----------------- None Achievements -------------- None Challenges ------------ None Game ------ Seed HellfireMicroSegregator Manual? 0 Play Time 00:52:34 Cumulative 156.1 hours Start 2024.09.06 @ 16:54:20 End 2024.09.06 @ 18:21:55 Sessions 1 Manual Loads 0 Difficulty Rogue Special Mode None Game No. 218 Rogue 218 Adventurer 0 Explorer 0 Win Type - Total 0 Types 0/0/0/0/0/0/0/0/0 Lore% 32 Gallery% 60 Achievement% 41 Wizard Run 0 Options --------- Layout 0 ASCII 0 Keyboard 0 Movement Mouse Keybinds 0 Fullscreen 1 Font 24/Smallcaps Map View 76x50 Zoom Use 0% Tactical HUD 1 Map Filters NONE Filters NONE Steam 1 RUN: d876e7e3-b84f-4645-aa0b-116076b3b348